bitfinex/quotes_BTCUSD_20240921
["timestamp","ask_amount","ask_price","bid_price","bid_amount"]
[1726916596538,3.65773772,63105.0,63104.0,0.194925]
[1726916596766,3.68073772,63105.0,63104.0,0.194925]
[1726916597005,3.76673772,63105.0,63104.0,0.194925]
[1726916597435,3.08073772,63105.0,63104.0,0.194925]
[1726916597655,3.06673772,63105.0,63104.0,0.193925]
[1726916597859,3.08073772,63105.0,63104.0,0.193925]
[1726916600003,3.06673772,63105.0,63104.0,0.193925]
[1726916600444,3.78073772,63105.0,63104.0,0.193925]
[1726916600691,3.76673772,63105.0,63104.0,0.193925]
[1726916601120,3.78073772,63105.0,63104.0,0.193925]
[1726916608409,3.92312306,63105.0,63104.0,0.193925]
[1726916608883,3.22312306,63105.0,63104.0,0.193925]
[1726916610430,3.08073772,63105.0,63104.0,0.193925]
[1726916610653,2.98465568,63105.0,63104.0,0.193925]
[1726916611784,3.68465568,63105.0,63104.0,0.193925]
[1726916612904,3.54227234,63105.0,63104.0,0.193925]
[1726916613337,3.68465568,63105.0,63104.0,0.193925]
[1726916613582,3.54227234,63105.0,63104.0,0.193925]
[1726916614029,3.68465568,63105.0,63104.0,0.193925]
[1726916614252,3.54227234,63105.0,63104.0,0.193925]
[1726916616355,3.68464636,63105.0,63104.0,0.193925]
[1726916616592,3.54227234,63105.0,63104.0,0.193925]
[1726916617502,2.84227234,63105.0,63104.0,0.193925]
[1726916620203,3.54227234,63105.0,63104.0,0.193925]
[1726916620421,2.84227234,63105.0,63104.0,0.193925]
[1726916620853,3.0686305,63105.0,63104.0,0.193925]
[1726916621310,3.76830619,63105.0,63104.0,0.193925]
[1726916621525,3.76827521,63105.0,63104.0,0.193925]
[1726916624956,3.05427521,63105.0,63104.0,0.193925]
[1726916625186,2.65827521,63105.0,63104.0,0.193925]
[1726916628611,1.73227234,63105.0,63104.0,0.193925]
[1726916629065,1.95607413,63105.0,63104.0,0.193925]
[1726916630892,3.06607413,63105.0,63104.0,0.193925]
[1726916631633,3.76607413,63105.0,63104.0,0.193925]
[1726916632557,3.90844952,63105.0,63104.0,0.193925]
[1726916634599,3.30517188,63105.0,63104.0,0.193925]
[1726916634832,3.44762879,63105.0,63104.0,0.193925]
[1726916635046,3.20853104,63105.0,63104.0,0.193925]
[1726916636519,3.44777384,63105.0,63104.0,0.193925]
[1726916637221,3.30358744,63105.0,63104.0,0.193925]
[1726916639092,1.70248339,63105.0,63104.0,0.193925]
[1726916639299,1.24094034,63105.0,63104.0,0.193925]
[1726916639738,1.09840834,63105.0,63104.0,0.193925]
[1726916639953,1.41534034,63105.0,63104.0,0.193925]
[1726916640196,1.09840834,63105.0,63104.0,0.193925]
[1726916640380,1.09840834,63105.0,63104.0,0.503925]
[1726916640635,1.55787234,63105.0,63104.0,0.51488921]
[1726916640862,1.55787234,63105.0,63104.0,0.74085883]
[1726916640863,1.04290123,63105.0,63104.0,0.74085883]
[1726916641109,0.80036923,63105.0,63104.0,0.74085883]
[1726916641774,0.78636923,63105.0,63104.0,0.74085883]
[1726916641995,0.80036923,63105.0,63104.0,0.74085883]
[1726916642227,0.09502473,63109.0,63105.0,0.4831]
[1726916642484,0.5,63111.0,63110.0,0.959365]
[1726916642732,0.66305367,63111.0,63110.0,0.959365]
[1726916642981,0.56393118,63111.0,63110.0,1.15421117]
[1726916643233,0.51640488,63111.0,63110.0,1.47111717]
[1726916644211,0.00165,63114.0,63113.0,1.276218]
[1726916644448,0.00165,63114.0,63113.0,1.777009]
[1726916644674,0.00165,63114.0,63113.0,1.78788656]
[1726916646048,0.00865,63114.0,63113.0,1.78888656]
[1726916646716,0.01665,63114.0,63113.0,1.78988656]
[1726916656369,0.01658662,63114.0,63113.0,1.78988656]
[1726916659051,0.00958662,63114.0,63113.0,1.78888656]
[1726916659268,0.00158662,63114.0,63113.0,1.78788656]
[1726916659469,0.00758662,63114.0,63113.0,1.78888656]
[1726916659692,0.01258662,63114.0,63113.0,1.78888656]
[1726916659898,0.00158662,63114.0,63113.0,1.78788656]
[1726916660337,0.00958662,63114.0,63113.0,1.78888656]
[1726916660548,0.00158662,63114.0,63113.0,1.78788656]
[1726916660969,0.00658662,63114.0,63113.0,1.78788656]
[1726916661414,0.01358662,63114.0,63113.0,1.78888656]
[1726916661843,0.00658662,63114.0,63113.0,1.78788656]
[1726916662051,0.01058662,63114.0,63113.0,1.78788656]
[1726916665164,0.01058662,63114.0,63113.0,1.78871156]
[1726916671672,0.01058662,63114.0,63113.0,1.62161156]
[1726916682321,0.00158662,63114.0,63113.0,1.62161156]
[1726916682758,0.01058662,63114.0,63113.0,1.62161156]
[1726916683015,0.00558662,63114.0,63113.0,1.62161156]
[1726916683242,0.00958662,63114.0,63113.0,1.62161156]
[1726916684133,0.00558662,63114.0,63113.0,1.62161156]
[1726916684425,0.00858662,63114.0,63113.0,1.62161156]
[1726916686252,0.00858662,63114.0,63113.0,1.12082056]
[1726916686494,0.00858662,63114.0,63113.0,1.43771156]
[1726916686715,0.00858662,63114.0,63113.0,1.44489996]
[1726916689186,0.05591158,63114.0,63113.0,1.44489996]
[1726916689651,0.07957406,63114.0,63113.0,1.44489996]
[1726916690324,0.00858662,63114.0,63113.0,1.44489996]
[1726916691237,0.20098662,63114.0,63113.0,1.44489996]
[1726916691470,0.27197406,63114.0,63113.0,1.44489996]
[1726916695179,0.27197406,63114.0,63113.0,1.426834]
[1726916695627,0.27197406,63114.0,63113.0,1.44504139]
[1726916699935,0.07957406,63114.0,63113.0,1.44504139]
[1726916700156,0.00858662,63114.0,63113.0,1.44504139]
[1726916700371,0.10323655,63114.0,63113.0,1.44504139]
[1726916700586,0.00858662,63114.0,63113.0,1.44504139]
[1726916701034,0.10373056,63114.0,63113.0,1.44504139]
[1726916701252,0.00858662,63114.0,63113.0,1.44504139]
[1726916701682,0.10373056,63114.0,63113.0,1.44504139]
[1726916701909,0.00858662,63114.0,63113.0,1.44504139]
[1726916702562,0.07994608,63114.0,63113.0,1.44504139]
[1726916702995,0.00858662,63114.0,63113.0,1.44504139]
[1726916703217,0.10373056,63114.0,63113.0,1.44504139]
[1726916703484,0.00858662,63114.0,63113.0,1.44504139]
[1726916703940,0.10373056,63114.0,63113.0,1.44504139]
[1726916704375,0.10373056,63114.0,63113.0,1.49509951]
[1726916704596,0.07994331,63114.0,63113.0,1.44504139]
[1726916705041,0.00858662,63114.0,63113.0,1.44504139]
[1726916705261,0.07994553,63114.0,63113.0,1.44504139]
[1726916705734,0.10373056,63114.0,63113.0,1.44504139]
[1726916705948,0.07994745,63114.0,63113.0,1.44504139]
[1726916706440,0.07994651,63114.0,63113.0,1.44504139]
[1726916706631,0.00858662,63114.0,63113.0,1.44504139]
[1726916707100,0.10373056,63114.0,63113.0,1.44504139]
[1726916707349,0.00858662,63114.0,63113.0,1.44504139]
[1726916707596,0.10373056,63114.0,63113.0,1.44504139]
[1726916707813,0.00858662,63114.0,63113.0,1.44504139]
[1726916708041,0.10373056,63114.0,63113.0,1.44504139]
[1726916712739,0.00858662,63114.0,63113.0,1.44504139]
[1726916713182,0.10373056,63114.0,63113.0,1.44504139]
[1726916713411,0.00858662,63114.0,63113.0,1.44504139]
[1726916713651,0.07994308,63114.0,63113.0,1.44504139]
[1726916714105,0.00858662,63114.0,63113.0,1.44504139]
[1726916714327,0.07994308,63114.0,63113.0,1.44504139]
[1726916714560,0.07994308,63114.0,63113.0,1.61214139]
[1726916714782,0.00858662,63114.0,63113.0,1.80534139]
[1726916715013,0.00858662,63114.0,63113.0,1.80734139]
[1726916715240,0.00858662,63114.0,63113.0,1.82405925]
[1726916715459,0.00858662,63114.0,63113.0,1.80734139]
[1726916716216,0.00858662,63114.0,63113.0,1.80534139]
[1726916717768,0.00858662,63114.0,63113.0,1.80734139]
[1726916717954,0.00858662,63114.0,63113.0,1.80534139]
[1726916719326,0.00558662,63114.0,63113.0,1.80534139]
[1726916719750,0.00158662,63114.0,63113.0,1.80534139]
[1726916719994,0.00458662,63114.0,63113.0,1.80534139]
[1726916720202,0.00658662,63114.0,63113.0,1.80534139]
[1726916720880,0.00658662,63114.0,63113.0,2.28528606]
[1726916721089,0.00658662,63114.0,63113.0,2.30165278]
[1726916721311,0.00658662,63114.0,63113.0,2.31773288]
[1726916721774,0.00458662,63114.0,63113.0,2.61825716]
[1726916722009,0.00165,63116.0,63115.0,2.096645]
[1726916722246,0.00165,63116.0,63115.0,2.25969867]
[1726916722481,0.00165,63116.0,63115.0,2.27788494]
[1726916723626,0.00265,63116.0,63115.0,2.28888494]
[1726916724762,0.00365,63116.0,63115.0,2.29988494]
[1726916727447,0.00265,63116.0,63115.0,2.28888494]
[1726916727693,0.00365,63116.0,63115.0,2.29488494]
[1726916727907,0.00365,63116.0,63115.0,2.28888494]
[1726916728362,0.00365,63116.0,63115.0,2.28488494]
[1726916728579,0.00365,63116.0,63115.0,2.29088494]
[1726916728580,0.00465,63116.0,63115.0,2.29088494]
[1726916729095,0.00365,63116.0,63115.0,2.28488494]
[1726916729313,0.00465,63116.0,63115.0,2.29188494]
[1726916732021,0.00465,63116.0,63115.0,2.28480313]
[1726916750772,0.00465,63116.0,63115.0,2.10010313]
[1726916754097,0.02100516,63116.0,63115.0,2.10010313]
[1726916757987,0.00465,63116.0,63115.0,2.10010313]
[1726916759065,0.02100851,63116.0,63115.0,2.10010313]
[1726916761968,0.00465,63116.0,63115.0,2.10010313]
[1726916763009,0.02100238,63116.0,63115.0,2.10010313]
[1726916763210,0.00465,63116.0,63115.0,2.10010313]
[1726916766303,0.00465,63116.0,63115.0,2.14762388]
[1726916770043,0.00465,63116.0,63115.0,2.10010313]
[1726916770263,0.00465,63116.0,63115.0,2.14764908]
[1726916770475,0.1233,63117.0,63116.0,1.911918]
[1726916770713,0.1233,63117.0,63116.0,2.086982]
[1726916772032,0.1253,63117.0,63116.0,2.098982]
[1726916775033,0.1253,63117.0,63116.0,2.11522806]
[1726916777773,0.1253,63117.0,63116.0,2.096982]
[1726916777774,0.3091,63117.0,63116.0,2.096982]
[1726916778468,0.3091,63117.0,63116.0,2.1133721]
[1726916778691,0.3091,63117.0,63116.0,2.1153721]
[1726916784277,0.3091,63117.0,63116.0,2.11538512]
[1726916786642,0.3091,63117.0,63116.0,2.098982]
[1726916788707,0.3091,63117.0,63116.0,2.11532426]
[1726916789633,0.3091,63117.0,63116.0,2.098982]
[1726916795249,0.3091,63117.0,63116.0,2.100632]
[1726916796639,0.3091,63117.0,63116.0,2.11697344]
[1726916796923,0.3091,63117.0,63116.0,2.100632]
[1726916797108,0.3091,63117.0,63116.0,2.11697318]
[1726916802913,0.3091,63117.0,63116.0,2.098632]
[1726916803130,0.3091,63117.0,63116.0,2.100632]
[1726916804097,0.6274,63117.0,63116.0,1.13855798]
[1726916804308,0.67497603,63117.0,63116.0,1.13855798]
[1726916804777,0.67497603,63117.0,63116.0,1.122716]
[1726916804995,0.67497603,63117.0,63116.0,1.13738246]
[1726916805211,0.67397603,63117.0,63116.0,1.13138246]
[1726916805445,0.6264,63117.0,63116.0,1.13138246]
[1726916805669,0.6344,63117.0,63116.0,1.13238246]
[1726916806159,0.6334,63117.0,63116.0,1.12638246]
[1726916806381,0.6569115,63117.0,63116.0,1.12738246]
[1726916818212,0.7044088,63117.0,63116.0,1.12738246]
[1726916818686,0.7044088,63117.0,63116.0,0.91095846]
[1726916818911,0.7044088,63117.0,63116.0,0.17675446]
[1726916818912,1.18546247,63117.0,63116.0,0.17675446]
[1726916819140,1.4749115,63117.0,63116.0,1.12738246]
[1726916820001,1.4679115,63117.0,63116.0,1.12638246]
[1726916820254,1.4809115,63117.0,63116.0,1.12738246]
[1726916820589,1.4679115,63117.0,63116.0,1.12638246]
[1726916820808,1.4599115,63117.0,63116.0,1.12538246]
[1726916821009,1.4829115,63117.0,63116.0,1.12738246]
[1726916821419,1.4534,63117.0,63116.0,1.12638246]
[1726916821635,1.4698209,63117.0,63116.0,1.12638246]
[1726916822046,1.4798209,63117.0,63116.0,1.12738246]
[1726916824747,1.4798209,63117.0,63116.0,1.12414676]
[1726916826099,1.64287457,63117.0,63116.0,0.49039476]
[1726916826306,1.37236756,63117.0,63116.0,0.49039476]
[1726916826550,1.95918057,63117.0,63116.0,0.01664193]
[1726916826771,1.57830417,63117.0,63116.0,0.002]
[1726916827019,1.48330957,63117.0,63116.0,0.002]
[1726916827247,0.15844,63115.0,63114.0,0.000825]
[1726916827464,0.58247457,63115.0,63114.0,0.000825]
[1726916827743,0.83574712,63115.0,63114.0,0.000825]
[1726916827983,1.19196227,63115.0,63114.0,0.000825]
[1726916828692,1.09704386,63115.0,63114.0,0.000825]
[1726916828899,1.11104386,63115.0,63114.0,0.001825]
[1726916829554,1.20588,63115.0,63114.0,0.001825]
[1726916829778,1.21888,63115.0,63114.0,0.001825]
[1726916830214,1.20254585,63115.0,63114.0,0.001825]
[1726916831336,1.20252566,63115.0,63114.0,0.001825]
[1726916831591,1.10770971,63115.0,63114.0,0.001825]
[1726916831820,1.12402859,63115.0,63114.0,0.001825]
[1726916833612,1.12402266,63115.0,63114.0,0.001825]
[1726916833855,1.44202266,63115.0,63114.0,0.001825]
[1726916834501,1.51309245,63115.0,63114.0,0.001825]
[1726916835176,1.49675741,63115.0,63114.0,0.001825]
[1726916836544,1.54420537,63115.0,63114.0,0.001825]
[1726916836791,1.06888437,63115.0,63114.0,0.001825]
[1726916837005,1.22732437,63115.0,63114.0,0.001825]
[1726916837215,1.10880443,63115.0,63114.0,0.001825]
[1726916837385,1.20354434,63115.0,63114.0,0.001825]
[1726916837778,1.10880443,63115.0,63114.0,0.001825]
[1726916837992,1.5204274,63115.0,63114.0,0.001825]
[1726916838196,1.10880443,63115.0,63114.0,0.001825]
[1726916838457,1.11515343,63115.0,63114.0,0.001825]
[1726916838674,1.43203443,63115.0,63114.0,0.001825]
[1726916840007,0.91740267,63115.0,63114.0,0.001825]
[1726916840234,1.00579243,63115.0,63114.0,0.001825]
[1726916840465,0.70411796,63115.0,63114.0,0.01575634]
[1726916840713,0.68779243,63115.0,63114.0,0.001825]
[1726916840954,0.59305367,63115.0,63114.0,0.001825]
[1726916841184,0.59305367,63115.0,63114.0,0.01575634]
[1726916841557,0.68779664,63115.0,63114.0,0.01575634]
[1726916841770,0.59305367,63115.0,63114.0,0.01575634]
[1726916843895,0.59305367,63115.0,63114.0,0.49108534]
[1726916844590,0.68779664,63115.0,63114.0,0.49108534]
[1726916846286,1.00579664,63115.0,63114.0,0.49108534]
[1726916846703,1.00579664,63115.0,63114.0,0.477154]
[1726916846921,1.00579664,63115.0,63114.0,0.49109154]
[1726916847623,0.91105367,63115.0,63114.0,0.49109154]
[1726916849349,0.98217832,63115.0,63114.0,0.49109154]
[1726916849569,0.91105367,63115.0,63114.0,0.49109154]
[1726916849817,1.00587201,63115.0,63114.0,0.49109154]
[1726916851108,1.00587201,63115.0,63114.0,0.17420554]
[1726916851339,0.91105367,63115.0,63114.0,0.17420554]
[1726916853506,1.02948239,63115.0,63114.0,0.17420554]
[1726916853722,0.91105367,63115.0,63114.0,0.17420554]
[1726916854199,1.02948239,63115.0,63114.0,0.17420554]
[1726916854639,0.91105367,63115.0,63114.0,0.17420554]
[1726916854859,1.02967402,63115.0,63114.0,0.17420554]
[1726916855552,1.02968093,63115.0,63114.0,0.17420554]
[1726916856668,1.02968093,63115.0,63114.0,0.01576254]
[1726916856907,0.91105367,63115.0,63114.0,0.01576254]
[1726916858286,0.91105367,63115.0,63114.0,0.17420554]
[1726916860648,0.91105367,63115.0,63114.0,0.01576254]
[1726916860877,0.91105367,63115.0,63114.0,0.17420554]
[1726916862768,0.557,63115.0,63114.0,0.80797754]
[1726916863004,0.239,63115.0,63114.0,1.12486354]
[1726916863236,0.25535398,63115.0,63114.0,1.12486354]
[1726916864460,0.24235398,63115.0,63114.0,1.12486354]
[1726916864690,0.36011608,63115.0,63114.0,1.12386354]
[1726916865177,0.37111608,63115.0,63114.0,1.12386354]
[1726916865442,0.35811608,63115.0,63114.0,1.12386354]
[1726916865667,0.36811608,63115.0,63114.0,1.12386354]
[1726916868022,0.5673608,63115.0,63114.0,1.12386354]
[1726916868474,0.66239117,63115.0,63114.0,1.12386354]
[1726916868698,0.5673608,63115.0,63114.0,1.12386354]
[1726916868929,0.66239117,63115.0,63114.0,1.12386354]
[1726916869150,0.65239686,63115.0,63114.0,1.12386354]
[1726916869370,0.64139686,63115.0,63114.0,1.12386354]
[1726916869583,0.65039686,63115.0,63114.0,1.12386354]
[1726916870234,0.66039686,63115.0,63114.0,1.12386354]
[1726916870454,0.56536649,63115.0,63114.0,1.12386354]
[1726916870670,0.66039686,63115.0,63114.0,1.12386354]
[1726916870887,0.65139686,63115.0,63114.0,1.12386354]
[1726916871102,0.66039686,63115.0,63114.0,1.12386354]
[1726916872173,0.55536649,63115.0,63114.0,1.12386354]
[1726916872395,0.56536649,63115.0,63114.0,1.12386354]
[1726916872861,0.66039686,63115.0,63114.0,1.12386354]
[1726916873107,0.56536649,63115.0,63114.0,1.12386354]
[1726916873323,0.66039686,63115.0,63114.0,1.12386354]
[1726916874275,0.56536649,63115.0,63114.0,1.12386354]
[1726916876112,0.5653927,63115.0,63114.0,1.12386354]
[1726916876336,0.63664933,63115.0,63114.0,1.12386354]
[1726916876823,0.63664804,63115.0,63114.0,1.12386354]
[1726916877042,0.5653927,63115.0,63114.0,1.12386354]
[1726916877275,0.63664812,63115.0,63114.0,1.12386354]
[1726916879562,0.62025542,63115.0,63114.0,1.12386354]
[1726916879790,0.5653812,63115.0,63114.0,1.12386354]
[1726916881115,0.63663278,63115.0,63114.0,1.12386354]
[1726916881326,0.42463539,63115.0,63114.0,1.12386354]
[1726916881812,0.40825419,63115.0,63114.0,1.12386354]
[1726916882039,0.42464446,63115.0,63114.0,1.12386354]
[1726916883168,0.42464517,63115.0,63114.0,1.12386354]
[1726916887499,0.35339027,63115.0,63114.0,1.12386354]
[1726916888455,0.42465131,63115.0,63114.0,1.12386354]
[1726916888901,0.35339027,63115.0,63114.0,1.12386354]
[1726916889124,0.42465131,63115.0,63114.0,1.12386354]
[1726916890081,0.35339027,63115.0,63114.0,1.12386354]
[1726916890324,0.42465131,63115.0,63114.0,1.12386354]
[1726916891516,0.40090181,63115.0,63114.0,1.12386354]
[1726916891762,0.328,63115.0,63114.0,1.12386354]
[1726916891983,0.34439745,63115.0,63114.0,1.32226354]
[1726916892213,0.33439745,63115.0,63114.0,1.32226354]
[1726916892668,0.34139745,63115.0,63114.0,1.32326354]
[1726916892905,0.34139745,63115.0,63114.0,1.32226354]
[1726916892906,0.33439745,63115.0,63114.0,1.32226354]
[1726916893182,0.34039745,63115.0,63114.0,1.32226354]
[1726916893412,0.34339745,63115.0,63114.0,1.32226354]
[1726916893864,0.33739745,63115.0,63114.0,1.32226354]
[1726916894313,0.34039745,63115.0,63114.0,1.32226354]
[1726916894993,0.324,63115.0,63114.0,1.32226354]
[1726916895225,0.34038062,63115.0,63114.0,1.32226354]
[1726916898232,0.34037523,63115.0,63114.0,1.12386354]
[1726916901635,0.38786392,63115.0,63114.0,1.12386354]
[1726916902101,0.3403591,63115.0,63114.0,1.12386354]
[1726916902526,0.38787176,63115.0,63114.0,1.12386354]
[1726916905018,0.37151266,63115.0,63114.0,1.12386354]
[1726916905247,0.38790355,63115.0,63114.0,1.12386354]
[1726916907218,0.34039089,63115.0,63114.0,1.12386354]
[1726916907431,0.41168878,63115.0,63114.0,1.12386354]
[1726916911796,0.41169248,63115.0,63114.0,1.12386354]
[1726916912541,0.34039459,63115.0,63114.0,1.12386354]
[1726916912760,0.41172199,63115.0,63114.0,1.12386354]
[1726916913445,0.34039459,63115.0,63114.0,1.12386354]
[1726916913901,0.41172561,63115.0,63114.0,1.12386354]
[1726916914122,0.34039459,63115.0,63114.0,1.12386354]
[1726916914334,0.41172543,63115.0,63114.0,1.12386354]
[1726916914759,0.34039459,63115.0,63114.0,1.12386354]
[1726916915006,0.39533144,63115.0,63114.0,1.12386354]
[1726916915225,0.49424432,63115.0,63114.0,1.12386354]
[1726916915448,0.33440024,63115.0,63114.0,1.12386354]
[1726916915680,0.34040024,63115.0,63114.0,1.12386354]
[1726916915910,0.51665955,63115.0,63114.0,1.12386354]
[1726916916132,0.51365955,63115.0,63114.0,1.12386354]
[1726916916382,0.33840024,63115.0,63114.0,1.12386354]
[1726916916612,0.33540024,63115.0,63114.0,1.12386354]
[1726916916839,0.60773195,63115.0,63114.0,1.12386354]
[1726916917054,0.51266365,63115.0,63114.0,1.12386354]
[1726916917273,0.51267027,63115.0,63114.0,1.12386354]
[1726916917710,0.6077822,63115.0,63114.0,1.12386354]
[1726916918383,0.28978704,63115.0,63114.0,1.12386354]
[1726916918841,0.19467511,63115.0,63114.0,1.12386354]
[1726916919070,0.28978704,63115.0,63114.0,1.12386354]
[1726916921634,0.27338196,63115.0,63114.0,1.12386354]
[1726916921876,0.28979008,63115.0,63114.0,1.12386354]
[1726916922308,0.19467815,63115.0,63114.0,1.12386354]
[1726916922550,0.28979008,63115.0,63114.0,1.12386354]
[1726916923240,0.19467815,63115.0,63114.0,1.12386354]
[1726916923477,0.60779008,63115.0,63114.0,1.12386354]
[1726916924179,0.51267815,63115.0,63114.0,1.12386354]
[1726916924184,0.40775537,63115.0,63114.0,1.44074954]
[1726916924421,0.01840812,63115.0,63114.0,1.63064954]
[1726916924651,0.08975537,63115.0,63114.0,1.63064954]
[1726916924887,0.01843315,63115.0,63114.0,1.63064954]
[1726916925139,0.06599582,63115.0,63114.0,1.63064954]
[1726916925369,0.04956267,63115.0,63114.0,1.63064954]
[1726916925610,0.01844826,63115.0,63114.0,1.63064954]
[1726916927989,0.06600839,63115.0,63114.0,1.63064954]
[1726916928576,0.04956013,63115.0,63114.0,1.63064954]
[1726916928822,0.06600978,63115.0,63114.0,1.63064954]
[1726916930179,0.06500978,63115.0,63114.0,1.63064954]
[1726916930406,0.01744965,63115.0,63114.0,1.63064954]
[1726916931057,0.06400978,63115.0,63114.0,1.63064954]
[1726916931300,0.01644965,63115.0,63114.0,1.63064954]
[1726916932012,0.04921013,63116.0,63114.0,1.63064954]
[1726916932013,0.04921013,63116.0,63115.0,1.425964]
[1726916932229,0.06565482,63116.0,63115.0,1.425964]
[1726916932442,0.01809469,63116.0,63115.0,1.44094689]
[1726916932657,0.06565078,63116.0,63115.0,1.44094689]
[1726916933326,0.06565078,63116.0,63115.0,1.44194689]
[1726916934489,0.06565078,63116.0,63115.0,1.44294689]
[1726916936500,0.06565247,63116.0,63115.0,1.44294689]
[1726916936936,0.06565281,63116.0,63115.0,1.44294689]
[1726916937383,0.06565263,63116.0,63115.0,1.44294689]
[1726916938280,0.01809469,63116.0,63115.0,1.44294689]
[1726916938508,0.06565263,63116.0,63115.0,1.44294689]
[1726916939401,0.01809469,63116.0,63115.0,1.44294689]
[1726916940572,0.06564851,63116.0,63115.0,1.44294689]
[1726916940786,0.01809469,63116.0,63115.0,1.44294689]
[1726916941016,0.00165,63116.0,63115.0,1.44294689]
[1726916941239,0.01804102,63116.0,63115.0,1.44294689]
[1726916942160,0.06559484,63116.0,63115.0,1.44294689]
[1726916943676,0.04920382,63116.0,63115.0,1.44294689]
[1726916943908,0.01801763,63116.0,63115.0,1.44294689]
[1726916944354,0.19445026,63116.0,63115.0,1.12606589]
[1726916944562,0.2895559,63116.0,63115.0,1.12606589]
[1726916945016,0.19445026,63116.0,63115.0,1.12406589]
[1726916945245,0.11312708,63116.0,63115.0,1.12406589]
[1726916945473,0.09975945,63116.0,63115.0,1.12406589]
[1726916945698,0.09675945,63116.0,63115.0,1.12406589]
[1726916945917,0.09975945,63116.0,63115.0,1.12406589]
[1726916947034,0.10275945,63116.0,63115.0,1.12406589]
[1726916948803,0.00765,63116.0,63115.0,1.12406589]
[1726916949030,0.00765,63116.0,63115.0,1.12489089]
[1726916949704,0.42075947,63116.0,63115.0,1.12489089]
[1726916949950,0.42075858,63116.0,63115.0,1.12489089]
[1726916950412,0.32565,63116.0,63115.0,1.12489089]
[1726916950870,0.42075812,63116.0,63115.0,1.12489089]
[1726916951323,0.07897993,63116.0,63115.0,1.12489089]
[1726916951781,0.00765,63116.0,63115.0,1.12489089]
[1726916952426,0.27565174,63116.0,63115.0,1.12489089]
[1726916952643,0.00465,63116.0,63115.0,1.12489089]
[1726916952879,0.00165,63116.0,63115.0,1.12489089]
[1726916953095,0.1796049,63116.0,63115.0,1.12489089]
[1726916953303,0.1825843,63116.0,63115.0,1.12489089]
[1726916953528,0.27768467,63116.0,63115.0,1.12489089]
[1726916953779,0.27468467,63116.0,63115.0,1.12489089]
[1726916954485,0.27368467,63116.0,63115.0,1.12489089]
[1726916954705,0.17957655,63116.0,63115.0,1.12489089]
[1726916955102,0.27468467,63116.0,63115.0,1.12489089]
[1726916956392,0.17957655,63116.0,63115.0,1.12489089]
[1726916956600,0.49757655,63116.0,63115.0,1.12489089]
[1726916956788,0.59268467,63116.0,63115.0,1.12489089]
[1726916957777,0.32165,63116.0,63115.0,1.12489089]
[1726916958557,0.49761629,63116.0,63115.0,1.12489089]
[1726916958896,0.32165,63116.0,63115.0,1.12489089]
[1726916959095,0.49763918,63116.0,63115.0,1.12489089]
[1726916959882,0.59283479,63116.0,63115.0,1.12489089]
[1726916960089,0.49772361,63116.0,63115.0,1.12489089]
[1726916960507,0.49771179,63116.0,63115.0,1.12489089]
[1726916960718,0.60917112,63116.0,63115.0,1.12489089]
[1726916960917,0.60912916,63116.0,63115.0,1.12489089]
[1726916961731,0.49776659,63116.0,63115.0,1.12489089]
[1726916961940,0.59287983,63116.0,63115.0,1.12489089]
[1726916965696,0.49776659,63116.0,63115.0,1.12489089]
[1726916965927,0.5928858,63116.0,63115.0,1.12489089]
[1726916966177,0.49776659,63116.0,63115.0,1.12489089]
[1726916966669,0.59288647,63116.0,63115.0,1.12489089]
[1726916967105,0.59291227,63116.0,63115.0,1.12489089]
[1726916968201,0.49764873,63116.0,63115.0,1.12489089]
[1726916968447,0.59276995,63116.0,63115.0,1.12489089]
[1726916968892,0.60913655,63116.0,63115.0,1.12489089]
[1726916969550,0.60913778,63116.0,63115.0,1.12489089]
[1726916969796,0.59276995,63116.0,63115.0,1.12489089]
[1726916973893,0.61655018,63116.0,63115.0,1.12489089]
[1726916974111,0.59277282,63116.0,63115.0,1.12489089]
[1726916978023,0.59291358,63116.0,63115.0,1.12489089]
[1726916979123,0.6092727,63116.0,63115.0,1.12489089]
[1726916979338,0.59291358,63116.0,63115.0,1.12489089]
[1726916979798,0.49778671,63116.0,63115.0,1.12489089]
[1726916980020,0.59291358,63116.0,63115.0,1.12489089]
[1726916980264,0.59303931,63116.0,63115.0,1.12489089]
[1726916980978,0.60939955,63116.0,63115.0,1.12489089]
[1726916981422,0.60939991,63116.0,63115.0,1.12489089]
[1726916982789,0.61043436,63116.0,63115.0,1.12489089]
[1726916985398,0.51529854,63116.0,63115.0,1.12489089]
[1726916988955,0.5152975,63116.0,63115.0,1.12489089]
[1726916989435,0.63421728,63116.0,63115.0,1.12489089]
[1726916991991,0.61785772,63116.0,63115.0,1.12489089]
[1726916992475,0.49909433,63116.0,63115.0,1.12489089]
[1726916993393,0.61805754,63116.0,63115.0,1.12489089]
[1726916994075,0.49909433,63116.0,63115.0,1.12489089]
[1726916995210,0.61805754,63116.0,63115.0,1.12489089]
[1726916998013,0.49909433,63116.0,63115.0,1.12489089]
[1726917006462,0.59426241,63116.0,63115.0,1.12489089]
[1726917010451,0.59432445,63116.0,63115.0,1.12489089]
[1726917011665,0.49915704,63116.0,63115.0,1.12489089]
[1726917012356,0.49815704,63116.0,63115.0,1.12489089]
[1726917012600,0.49715704,63116.0,63115.0,1.12489089]
[1726917013042,0.50115704,63116.0,63115.0,1.12489089]
[1726917013271,0.49715704,63116.0,63115.0,1.12489089]
[1726917013711,0.50215704,63116.0,63115.0,1.12489089]
[1726917013935,0.49815704,63116.0,63115.0,1.12489089]
[1726917014150,0.49715704,63116.0,63115.0,1.12489089]
[1726917014341,0.6201163,63116.0,63115.0,1.12489089]
[1726917014601,0.6241163,63116.0,63115.0,1.12489089]
[1726917014834,0.60032615,63116.0,63115.0,1.12489089]
[1726917015308,0.60124476,63116.0,63115.0,1.12489089]
[1726917015779,0.50607564,63116.0,63115.0,1.12489089]
[1726917019687,0.81063704,63116.0,63115.0,1.12489089]
[1726917019905,0.49563704,63116.0,63115.0,1.12489089]
[1726917020155,0.38904638,63116.0,63115.0,1.12489089]
[1726917020375,0.39204638,63116.0,63115.0,1.12489089]
[1726917022602,0.32141215,63116.0,63115.0,1.12489089]
[1726917024883,0.30507328,63116.0,63115.0,1.12489089]
[1726917025116,0.32146127,63116.0,63115.0,1.12489089]
[1726917025307,0.63946127,63116.0,63115.0,1.12489089]
[1726917025578,0.63946127,63116.0,63115.0,1.13217471]
[1726917028100,0.62307328,63116.0,63115.0,1.13217471]
[1726917028319,0.63945706,63116.0,63115.0,1.13217471]
[1726917031808,0.63945706,63116.0,63115.0,1.12502473]
[1726917034515,0.63645706,63116.0,63115.0,1.12502473]
[1726917035189,0.63345706,63116.0,63115.0,1.12502473]
[1726917035428,0.63945706,63116.0,63115.0,1.12502473]
[1726917035895,0.64645706,63116.0,63115.0,1.12502473]
[1726917036360,0.63945706,63116.0,63115.0,1.12502473]
[1726917036603,0.64545706,63116.0,63115.0,1.12502473]
[1726917038172,0.64547675,63116.0,63115.0,1.12502473]
[1726917039541,0.64404828,63116.0,63115.0,1.12502473]